fUST/lending_fUST_20250720
["ID","MTS","AMOUNT","RATE_DAILY","PERIOD"]
[373359763,1752967835207,-460.0,0.00017787,2]
[373359764,1752967835216,-460.0,0.00017787,2]
[373359765,1752967835225,-463.68185771,0.00017787,2]
[373359766,1752967835234,-460.0,0.00017787,2]
[373359767,1752967835244,-460.0,0.00017787,2]
[373359768,1752967835258,-460.0,0.00017787,2]
[373359769,1752967835268,-460.0,0.00017787,2]
[373359770,1752967835277,-460.0,0.00017787,2]
[373359771,1752967835287,-460.0,0.00017787,2]
[373359772,1752967835296,-460.0,0.00017787,2]
[373359773,1752967835305,-460.0,0.00017787,2]
[373359774,1752967835314,-460.0,0.00017788,2]
[373359775,1752967835324,-460.0,0.00017788,2]
[373359776,1752967835333,-460.0,0.00017788,2]
[373359777,1752967835343,-398.43209973,0.00017788,2]
[373359778,1752967835352,-460.0,0.00017788,2]
[373359779,1752967835362,-460.0,0.00017788,2]
[373359780,1752967835372,-460.0,0.00017788,2]
[373359781,1752967835381,-460.0,0.00017788,2]
[373359782,1752967835391,-460.0,0.00017788,2]
[373359783,1752967835401,-460.0,0.00017788,2]
[373359784,1752967835410,-460.0,0.00017788,2]
[373359785,1752967835420,-460.0,0.00017788,2]
[373359786,1752967835430,-460.0,0.00017788,2]
[373359787,1752967835441,-460.0,0.00017788,2]
[373359788,1752967835451,-460.0,0.00017788,2]
[373359789,1752967835462,-460.0,0.00017788,2]
[373359790,1752967835471,-460.0,0.00017788,2]
[373359791,1752967835481,-460.0,0.00017788,2]
[373359792,1752967835492,-500.0,0.00017788,2]
[373359793,1752967835502,-524.21824242,0.00017788,2]
[373359794,1752967835511,-460.0,0.00017788,2]
[373359795,1752967835520,-460.0,0.00017788,2]
[373359796,1752967835530,-460.0,0.00017788,2]
[373359797,1752967835541,-460.0,0.00017788,2]
[373359798,1752967835552,-460.0,0.00017788,2]
[373359799,1752967835561,-460.0,0.00017788,2]
[373359800,1752967835572,-500.0,0.00017788,2]
[373359801,1752967835581,-564.62,0.00017788,2]
[373359802,1752967835591,-460.0,0.00017788,2]
[373359803,1752967835600,-460.0,0.00017884,2]
[373359804,1752967835609,-460.0,0.00017884,2]
[373359805,1752967835619,-460.0,0.00017884,2]
[373359806,1752967835628,-460.0,0.00017884,2]
[373359807,1752967835638,-500.0,0.00017884,2]
[373359808,1752967835648,-335.12,0.00017885,2]
[373359809,1752967835658,-500.0,0.00017885,2]
[373359810,1752967835668,-500.0,0.00017885,2]
[373359811,1752967835679,-500.0,0.00017885,2]
[373359812,1752967835805,-500.0,0.00017885,2]
[373359813,1752967835815,-500.0,0.00017885,2]
[373359814,1752967835824,-403.37098896,0.00017885,2]
[373359815,1752967835834,-2197.19,0.00017885,2]
[373359816,1752967835843,-460.0,0.00017886,2]
[373359817,1752967835853,-460.0,0.00017886,2]
[373359818,1752967835862,-460.0,0.00017886,2]
[373359819,1752967835872,-460.0,0.00017886,2]
[373359820,1752967835882,-460.0,0.00017886,2]
[373359821,1752967835891,-571.7,0.00017886,2]
[373359822,1752967835901,-460.0,0.00017886,2]
[373359823,1752967835912,-297.84961056,0.00017886,2]
[373359824,1752967835921,-723.71,0.00017886,2]
[373359825,1752967835931,-460.0,0.00017886,2]
[373359826,1752967835941,-477.39,0.00017886,2]
[373359827,1752967835950,-568.29,0.00017887,2]
[373359828,1752967835960,-460.0,0.00017887,2]
[373359829,1752967835969,-460.0,0.00017887,2]
[373359830,1752967835978,-12426.71228414,0.00018,2]
[373359831,1752967836025,-855.4,0.00018,2]
[373359840,1752967838575,-3085.1,0.00017785,2]
[373359841,1752967838677,-16860.83765887,0.00017785,2]
[373359842,1752967838688,-577.66831075,0.00017785,2]
[373359843,1752967838697,-10435.19235483,0.00018,2]
[373359844,1752967838707,-273.22346454,0.00018059,2]
[373359845,1752967838718,-460.0,0.00018059,2]
[373359846,1752967838727,-460.0,0.00018059,2]
[373359847,1752967838736,-460.0,0.00018059,2]
[373359848,1752967838747,-460.0,0.00018059,2]
[373359849,1752967838757,-721.04,0.00018059,2]
[373359850,1752967838766,-460.0,0.0001806,2]
[373359851,1752967838775,-460.0,0.0001806,2]
[373359852,1752967838785,-460.0,0.0001806,2]
[373359853,1752967838794,-460.0,0.0001806,2]
[373359854,1752967838804,-460.0,0.0001806,2]
[373359855,1752967838816,-460.0,0.0001806,2]
[373359856,1752967838828,-460.0,0.0001806,2]
[373359857,1752967838838,-460.0,0.0001806,2]
[373359858,1752967838847,-460.0,0.0001806,2]
[373359859,1752967838856,-460.0,0.0001806,2]
[373359860,1752967838865,-460.0,0.0001806,2]
[373359861,1752967838874,-460.0,0.0001806,2]
[373359862,1752967838883,-460.0,0.0001806,2]
[373359863,1752967838893,-460.0,0.0001806,2]
[373359864,1752967838902,-460.0,0.0001806,2]
[373359865,1752967838911,-460.0,0.0001806,2]
[373359866,1752967838921,-460.0,0.0001806,2]
[373359867,1752967838930,-460.0,0.0001806,2]
[373359868,1752967838939,-460.0,0.0001806,2]
[373359869,1752967838949,-460.0,0.0001806,2]
[373359870,1752967838958,-460.0,0.0001806,2]
[373359871,1752967838968,-460.0,0.0001806,2]
[373359872,1752967838977,-460.0,0.0001806,2]
[373359873,1752967838986,-963.18,0.0001806,2]
[373359874,1752967838999,-460.0,0.0001806,2]
[373359875,1752967839008,-460.0,0.0001806,2]
[373359876,1752967839018,-460.0,0.0001806,2]
[373359877,1752967839027,-460.0,0.0001806,2]
[373359878,1752967839038,-460.0,0.0001806,2]
[373359879,1752967839049,-460.0,0.0001806,2]
[373359880,1752967839059,-460.0,0.0001806,2]
[373359881,1752967839070,-1079.24,0.0001806,2]
[373359882,1752967839081,-460.0,0.0001806,2]
[373359883,1752967839091,-1049.88,0.0001806,2]
[373359884,1752967839101,-460.0,0.0001806,2]
[373359885,1752967839112,-460.0,0.0001806,2]
[373359886,1752967839125,-460.0,0.0001806,2]
[373359887,1752967839136,-460.0,0.0001806,2]
[373359888,1752967839146,-460.0,0.0001806,2]
[373359889,1752967839155,-460.0,0.0001806,2]
[373359890,1752967839165,-460.0,0.0001806,2]
[373359891,1752967839175,-460.0,0.0001806,2]
[373359892,1752967839185,-460.0,0.0001806,2]
[373359893,1752967839194,-460.0,0.0001806,2]
[373359894,1752967839203,-1792.67,0.0001806,2]
[373359895,1752967839212,-460.0,0.0001806,2]
[373359896,1752967839222,-460.0,0.0001806,2]
[373359897,1752967839231,-460.0,0.0001806,2]
[373359898,1752967839242,-460.0,0.0001806,2]
[373359899,1752967839251,-460.0,0.0001806,2]
[373359900,1752967839262,-460.0,0.0001806,2]
[373359901,1752967839273,-460.0,0.0001806,2]
[373359902,1752967839283,-460.0,0.00018061,2]
[373359903,1752967839292,-460.0,0.00018061,2]
[373359904,1752967839301,-460.0,0.00018061,2]
[373359905,1752967839310,-460.0,0.00018061,2]
[373359906,1752967839320,-460.0,0.00018061,2]
[373359907,1752967839329,-367.15050101,0.00018061,2]
[373359908,1752967839339,-460.0,0.00018061,2]
[373359909,1752967839348,-444.40700613,0.00018061,2]
[373359910,1752967839358,-460.0,0.00018061,2]
[373359911,1752967839368,-512.91817053,0.00018061,2]
[373359912,1752967839377,-460.0,0.00018061,2]
[373359913,1752967839386,-460.0,0.00018061,2]
[373359914,1752967839395,-460.0,0.00018061,2]
[373359915,1752967839405,-460.0,0.00018061,2]
[373359916,1752967839414,-460.0,0.00018061,2]
[373359917,1752967839424,-460.0,0.00018061,2]
[373359918,1752967839434,-460.0,0.00018061,2]
[373359919,1752967839443,-158.37769428,0.00018061,2]
[373359920,1752967839453,-460.0,0.00018061,2]
[373359921,1752967839463,-292.80812658,0.00018061,2]
[373359922,1752967839473,-683.81,0.00018061,2]
[373359923,1752967839483,-460.0,0.00018061,2]
[373359924,1752967839493,-460.0,0.00018061,2]
[373359925,1752967839504,-460.0,0.00018061,2]
[373359926,1752967839514,-460.0,0.00018061,2]
[373359927,1752967839524,-460.0,0.00018061,2]
[373359928,1752967839534,-460.0,0.00018061,2]
[373359929,1752967839543,-460.0,0.00018062,2]
[373359930,1752967839552,-460.0,0.00018062,2]
[373359931,1752967839561,-460.0,0.00018062,2]
[373359932,1752967839571,-460.0,0.00018062,2]
[373359933,1752967839580,-539.25034244,0.00018062,2]
[373359934,1752967839590,-242.97741326,0.00018062,2]
[373359935,1752967839600,-460.0,0.00018062,2]
[373359936,1752967839609,-460.0,0.00018062,2]
[373359937,1752967839618,-152.97,0.00018062,2]
[373359938,1752967839628,-460.0,0.00018062,2]
[373359939,1752967839637,-460.0,0.00018062,2]
[373359940,1752967839646,-460.0,0.00018062,2]
[373359941,1752967839656,-460.0,0.00018062,2]
[373359942,1752967839666,-460.0,0.00018062,2]
[373359943,1752967839676,-460.0,0.00018158,2]
[373359944,1752967839687,-456.6234479,0.00018158,2]
[373359945,1752967839696,-2197.19,0.00018159,2]
[373359946,1752967839706,-460.0,0.0001816,2]
[373359947,1752967839716,-571.7,0.0001816,2]
[373359948,1752967839726,-723.71,0.0001816,2]
[373359949,1752967839737,-460.0,0.0001816,2]
[373359950,1752967839748,-477.39,0.0001816,2]
[373359951,1752967839758,-568.29,0.00018161,2]
[373359952,1752967839768,-460.0,0.00018161,2]
[373359953,1752967839779,-7061.27489328,0.00018271,2]
[373359954,1752967839788,-460.0,0.00018333,2]
[373359955,1752967839799,-460.0,0.00018333,2]
[373359956,1752967839811,-460.0,0.00018333,2]
[373359957,1752967839820,-721.04,0.00018333,2]
[373359958,1752967839829,-460.0,0.00018334,2]
[373359959,1752967839839,-460.0,0.00018334,2]
[373359960,1752967839849,-460.0,0.00018334,2]
[373359961,1752967839860,-460.0,0.00018334,2]
[373359962,1752967839872,-460.0,0.00018334,2]
[373359963,1752967839882,-460.0,0.00018334,2]
[373359964,1752967839892,-460.0,0.00018334,2]
[373359965,1752967839902,-460.0,0.00018334,2]
[373359966,1752967839913,-460.0,0.00018334,2]
[373359967,1752967839923,-460.0,0.00018334,2]
[373359968,1752967839933,-963.18,0.00018334,2]
[373359969,1752967839943,-460.0,0.00018334,2]
[373359970,1752967839953,-460.0,0.00018334,2]
[373359971,1752967839962,-460.0,0.00018334,2]
[373359972,1752967839972,-460.0,0.00018334,2]
[373359973,1752967839983,-460.0,0.00018334,2]
[373359974,1752967839993,-1079.24,0.00018334,2]
[373359975,1752967840004,-460.0,0.00018334,2]
[373359976,1752967840014,-1049.88,0.00018334,2]
[373359977,1752967840023,-460.0,0.00018334,2]
[373359978,1752967840032,-460.0,0.00018334,2]
[373359979,1752967840043,-460.0,0.00018334,2]
[373359980,1752967840053,-460.0,0.00018334,2]
[373359981,1752967840063,-460.0,0.00018334,2]
[373359982,1752967840075,-460.0,0.00018334,2]
[373359983,1752967840084,-460.0,0.00018334,2]
[373359984,1752967840093,-460.0,0.00018334,2]
[373359985,1752967840102,-460.0,0.00018334,2]
[373359986,1752967840111,-240.56,0.00018334,2]
[373359987,1752967840120,-1792.67,0.00018334,2]
[373359988,1752967840129,-460.0,0.00018334,2]
[373359989,1752967840138,-460.0,0.00018334,2]
[373359990,1752967840147,-460.0,0.00018334,2]
[373359991,1752967840156,-460.0,0.00018334,2]
[373359992,1752967840167,-460.0,0.00018334,2]
[373359993,1752967840176,-460.0,0.00018335,2]
[373359994,1752967840185,-460.0,0.00018335,2]
[373359995,1752967840194,-460.0,0.00018335,2]
[373359996,1752967840203,-460.0,0.00018335,2]
[373359997,1752967840212,-460.0,0.00018335,2]
[373359998,1752967840221,-460.0,0.00018335,2]
[373359999,1752967840230,-460.0,0.00018335,2]
[373360001,1752967840239,-683.81,0.00018335,2]
[373360002,1752967840248,-294.57498993,0.00018335,2]
[373360004,1752967840258,-460.0,0.00018335,2]
[373360006,1752967840267,-460.0,0.00018335,2]
[373360008,1752967840276,-460.0,0.00018335,2]
[373360009,1752967840286,-460.0,0.00018335,2]
[373360010,1752967840295,-464.48585198,0.00018336,2]
[373360011,1752967840304,-460.0,0.00018336,2]
[373360012,1752967840313,-460.0,0.00018336,2]
[373360013,1752967840322,-460.0,0.00018336,2]
[373360014,1752967840331,-460.0,0.00018336,2]
[373360015,1752967840341,-460.0,0.00018336,2]
[373360016,1752967840351,-158.45459108,0.00018336,2]
[373360017,1752967840360,-460.0,0.00018336,2]
[373360018,1752967840370,-386.14255745,0.00018336,2]
[373360019,1752967840379,-460.0,0.00018432,2]
[373360020,1752967840388,-2197.19,0.00018433,2]
[373360021,1752967840397,-151.0,0.00018434,2]
[373360022,1752967840406,-460.0,0.00018434,2]
[373360023,1752967840415,-184.570996,0.00018434,2]
[373360024,1752967840424,-184.570996,0.00018434,2]
[373360025,1752967840434,-571.7,0.00018434,2]
[373360026,1752967840443,-723.71,0.00018434,2]
[373360027,1752967840452,-475.66821625,0.00018434,2]
[373360028,1752967840461,-477.39,0.00018434,2]
[373360029,1752967840470,-151.0,0.00018435,2]
[373360030,1752967840479,-151.0,0.00018435,2]
[373360031,1752967840489,-234.116647,0.00018435,2]
[373360032,1752967840498,-234.116647,0.00018435,2]
[373360033,1752967840507,-568.29,0.00018435,2]
[373360034,1752967840516,-460.0,0.00018435,2]
[373360035,1752967840526,-991.55813045,0.00018508,2]
[373360036,1752967840535,-460.0,0.00018607,2]
[373360037,1752967840545,-460.0,0.00018607,2]
[373360038,1752967840554,-460.0,0.00018607,2]
[373360039,1752967840563,-721.04,0.00018607,2]
[373360040,1752967840572,-460.0,0.00018608,2]
[373360041,1752967840582,-516.34,0.00018608,2]
[373360042,1752967840592,-460.0,0.00018608,2]
[373360043,1752967840601,-460.0,0.00018608,2]
[373360044,1752967840610,-460.0,0.00018608,2]
[373360045,1752967840619,-460.0,0.00018608,2]
[373360046,1752967840629,-460.0,0.00018608,2]
[373360047,1752967840638,-460.0,0.00018608,2]
[373360048,1752967840648,-460.0,0.00018608,2]
[373360049,1752967840660,-963.18,0.00018608,2]
[373360050,1752967840669,-460.0,0.00018608,2]
[373360051,1752967840678,-460.0,0.00018608,2]
[373360052,1752967840690,-460.0,0.00018608,2]
[373360053,1752967840700,-313.21547736,0.00018608,2]
[373360054,1752967840710,-460.0,0.00018608,2]
[373360055,1752967840719,-1079.24,0.00018608,2]
[373360056,1752967840730,-460.0,0.00018608,2]
[373360057,1752967840740,-1049.88,0.00018608,2]
[373360059,1752967840749,-460.0,0.00018608,2]
[373360060,1752967840759,-460.0,0.00018608,2]
[373360062,1752967840768,-460.0,0.00018608,2]
[373360064,1752967840779,-460.0,0.00018608,2]
[373360065,1752967840790,-486.75613743,0.00018608,2]
[373360066,1752967840799,-460.0,0.00018608,2]
[373360067,1752967840808,-603.47,0.00018608,2]
[373360068,1752967840819,-1792.67,0.00018608,2]
[373360069,1752967840829,-460.0,0.00018608,2]
[373360070,1752967840839,-460.0,0.00018608,2]
[373360071,1752967840849,-460.0,0.00018608,2]
[373360072,1752967840858,-460.0,0.00018608,2]
[373360073,1752967840869,-460.0,0.00018608,2]
[373360074,1752967840878,-500.0,0.00018608,2]
[373360075,1752967840887,-500.0,0.00018608,2]
[373360076,1752967840898,-500.0,0.00018608,2]
[373360077,1752967840908,-500.0,0.00018608,2]
[373360078,1752967840918,-500.0,0.00018608,2]
[373360079,1752967840928,-500.0,0.00018608,2]
[373360080,1752967840938,-540.51796428,0.00018608,2]
[373360081,1752967840948,-500.0,0.00018608,2]
[373360082,1752967840957,-500.0,0.00018608,2]
[373360083,1752967840966,-500.0,0.00018608,2]
[373360084,1752967840975,-460.0,0.00018609,2]
[373360085,1752967840984,-460.0,0.00018609,2]
[373360086,1752967840997,-460.0,0.00018609,2]
[373360087,1752967841008,-460.0,0.00018609,2]
[373360088,1752967841017,-460.0,0.00018609,2]
[373360089,1752967841026,-460.0,0.00018609,2]
[373360090,1752967841035,-683.81,0.00018609,2]
[373360091,1752967841045,-460.0,0.00018609,2]
[373360092,1752967841054,-460.0,0.00018609,2]
[373360093,1752967841063,-460.0,0.00018609,2]
[373360094,1752967841074,-460.0,0.00018609,2]
[373360095,1752967841084,-460.0,0.0001861,2]
[373360096,1752967841094,-421.03035671,0.0001861,2]
[373360097,1752967841103,-538.98031648,0.0001861,2]
[373360098,1752967841112,-460.0,0.0001861,2]
[373360099,1752967841123,-460.0,0.0001861,2]
[373360100,1752967841132,-460.0,0.0001861,2]
[373360101,1752967841142,-538.04655802,0.0001861,2]
[373360102,1752967841152,-460.0,0.00018706,2]
[373360103,1752967841161,-184.570996,0.00018707,2]
[373360104,1752967841170,-184.570996,0.00018707,2]
[373360105,1752967841180,-2197.19,0.00018707,2]
[373360106,1752967841189,-151.0,0.00018708,2]
[373360107,1752967841198,-151.0,0.00018708,2]
[373360108,1752967841207,-460.0,0.00018708,2]
[373360109,1752967841217,-234.116647,0.00018708,2]
[373360110,1752967841226,-234.116647,0.00018708,2]
[373360111,1752967841235,-571.7,0.00018708,2]
[373360112,1752967841244,-723.71,0.00018708,2]
[373360113,1752967841254,-477.39,0.00018708,2]
[373360114,1752967841263,-568.29,0.00018709,2]
[373360115,1752967841272,-460.0,0.00018709,2]
[373360116,1752967841408,-184.570996,0.00018721,2]
[373360117,1752967841417,-184.570996,0.00018721,2]
[373360118,1752967841427,-471.58352158,0.00018859,2]
[373360119,1752967841437,-460.0,0.00018881,2]
[373360120,1752967841446,-460.0,0.00018881,2]
[373360121,1752967841456,-460.0,0.00018881,2]
[373360122,1752967841465,-721.04,0.00018881,2]
[373360123,1752967841475,-460.0,0.00018882,2]
[373360124,1752967841484,-460.0,0.00018882,2]
[373360125,1752967841494,-460.0,0.00018882,2]
[373360126,1752967841504,-460.0,0.00018882,2]
[373360127,1752967841513,-460.0,0.00018882,2]
[373360128,1752967841522,-460.0,0.00018882,2]
[373360129,1752967841532,-460.0,0.00018882,2]
[373360130,1752967841541,-460.0,0.00018882,2]
[373360131,1752967841551,-963.18,0.00018882,2]
[373360132,1752967841561,-460.0,0.00018882,2]
[373360133,1752967841570,-460.0,0.00018882,2]
[373360134,1752967841580,-460.0,0.00018882,2]
[373360135,1752967841589,-460.0,0.00018882,2]
[373360136,1752967841599,-1079.24,0.00018882,2]
[373360137,1752967841609,-460.0,0.00018882,2]
[373360138,1752967841619,-1049.88,0.00018882,2]
[373360139,1752967841629,-460.0,0.00018882,2]
[373360140,1752967841639,-460.0,0.00018882,2]
[373360141,1752967841648,-460.0,0.00018882,2]
[373360142,1752967841658,-460.0,0.00018882,2]
[373360143,1752967841667,-460.0,0.00018882,2]
[373360144,1752967841676,-1792.67,0.00018882,2]
[373360145,1752967841686,-460.0,0.00018882,2]
[373360146,1752967841695,-460.0,0.00018882,2]
[373360147,1752967841704,-460.0,0.00018882,2]
[373360148,1752967841713,-460.0,0.00018882,2]
[373360149,1752967841722,-460.0,0.00018882,2]
[373360150,1752967841732,-460.0,0.00018883,2]
[373360151,1752967841741,-460.0,0.00018883,2]
[373360152,1752967841750,-460.0,0.00018883,2]
[373360153,1752967841759,-460.0,0.00018883,2]
[373360154,1752967841768,-460.0,0.00018883,2]
[373360155,1752967841777,-683.81,0.00018883,2]
[373360156,1752967841787,-460.0,0.00018883,2]
[373360157,1752967841796,-460.0,0.00018883,2]
[373360158,1752967841805,-460.0,0.00018883,2]
[373360159,1752967841815,-460.0,0.00018883,2]
[373360160,1752967841823,-460.0,0.00018884,2]
[373360161,1752967841833,-460.0,0.00018884,2]
[373360162,1752967841842,-460.0,0.00018884,2]
[373360163,1752967841851,-1216.08426609,0.000189,2]
[373360164,1752967841860,-3080.74172678,0.000189,2]
[373360165,1752967841869,-460.0,0.0001898,2]
[373360166,1752967841879,-2197.19,0.00018981,2]
[373360167,1752967841888,-151.0,0.00018982,2]
[373360168,1752967841898,-460.0,0.00018982,2]
[373360169,1752967841907,-234.116647,0.00018982,2]
[373360170,1752967841917,-234.116647,0.00018982,2]
[373360171,1752967841927,-571.7,0.00018982,2]
[373360172,1752967841936,-723.71,0.00018982,2]
[373360173,1752967841945,-477.39,0.00018982,2]
[373360174,1752967841955,-568.29,0.00018983,2]
[373360175,1752967841964,-460.0,0.00018983,2]
[373360176,1752967841974,-184.570996,0.00018984,2]
[373360177,1752967841983,-184.570996,0.00018984,2]
[373360178,1752967841993,-421.06677292,0.00019032,2]
[373360179,1752967842005,-3080.74172674,0.00019141,2]
[373360180,1752967842015,-336.52928695,0.00019142,2]
[373360181,1752967842024,-460.0,0.00019155,2]
[373360182,1752967842033,-460.0,0.00019155,2]
[373360183,1752967842043,-460.0,0.00019155,2]
[373360184,1752967842052,-721.04,0.00019155,2]
[373360185,1752967842061,-460.0,0.00019156,2]
[373360186,1752967842070,-460.0,0.00019156,2]
[373360187,1752967842080,-460.0,0.00019156,2]
[373360188,1752967842089,-460.0,0.00019156,2]
[373360189,1752967842099,-460.0,0.00019156,2]
[373360190,1752967842109,-460.0,0.00019156,2]
[373360191,1752967842119,-460.0,0.00019156,2]
[373360192,1752967842128,-460.0,0.00019156,2]
[373360193,1752967842138,-963.18,0.00019156,2]
[373360194,1752967842147,-460.0,0.00019156,2]
[373360195,1752967842156,-460.0,0.00019156,2]
[373360196,1752967842166,-460.0,0.00019156,2]
[373360197,1752967842175,-460.0,0.00019156,2]
[373360198,1752967842185,-1079.24,0.00019156,2]
[373360199,1752967842194,-460.0,0.00019156,2]
[373360200,1752967842203,-1049.88,0.00019156,2]
[373360201,1752967842213,-460.0,0.00019156,2]
[373360202,1752967842222,-460.0,0.00019156,2]
[373360203,1752967842232,-460.0,0.00019156,2]
[373360204,1752967842241,-460.0,0.00019156,2]
[373360205,1752967842250,-460.0,0.00019156,2]
[373360206,1752967842260,-1792.67,0.00019156,2]
[373360207,1752967842270,-460.0,0.00019156,2]
[373360208,1752967842279,-460.0,0.00019156,2]
[373360209,1752967842288,-460.0,0.00019156,2]
[373360210,1752967842297,-460.0,0.00019156,2]
[373360211,1752967842307,-460.0,0.00019156,2]
[373360212,1752967842317,-460.0,0.00019157,2]
[373360213,1752967842326,-460.0,0.00019157,2]
[373360214,1752967842335,-460.0,0.00019157,2]
[373360215,1752967842345,-460.0,0.00019157,2]
[373360216,1752967842353,-460.0,0.00019157,2]
[373360217,1752967842363,-683.81,0.00019157,2]
[373360218,1752967842374,-460.0,0.00019157,2]
[373360219,1752967842384,-460.0,0.00019157,2]
[373360220,1752967842394,-460.0,0.00019157,2]
[373360221,1752967842405,-460.0,0.00019157,2]
[373360222,1752967842414,-460.0,0.00019158,2]
[373360223,1752967842424,-460.0,0.00019158,2]
[373360224,1752967842434,-460.0,0.00019158,2]
[373360225,1752967842443,-318.393183,0.00019178,2]
[373360226,1752967842453,-300.55667262,0.00019224,2]
[373360227,1752967842462,-460.0,0.00019254,2]
[373360228,1752967842471,-2197.19,0.00019255,2]
[373360229,1752967842480,-151.0,0.00019256,2]
[373360230,1752967842490,-460.0,0.00019256,2]
[373360231,1752967842499,-234.116647,0.00019256,2]
[373360232,1752967842508,-234.116647,0.00019256,2]
[373360233,1752967842517,-571.7,0.00019256,2]
[373360234,1752967842526,-723.71,0.00019256,2]
[373360235,1752967842535,-477.39,0.00019256,2]
[373360236,1752967842546,-568.29,0.00019257,2]
[373360237,1752967842556,-460.0,0.00019257,2]
[373360238,1752967842566,-184.570996,0.00019268,2]
[373360239,1752967842577,-184.570996,0.00019268,2]
[373360240,1752967842587,-151.0,0.00019329,2]
[373360241,1752967842597,-184.570996,0.00019329,2]
[373360242,1752967842606,-184.570996,0.00019329,2]
[373360243,1752967842616,-234.116647,0.00019329,2]
[373360244,1752967842625,-234.116647,0.00019329,2]
[373360245,1752967842635,-4715.50353654,0.00019329,2]
[373360246,1752967842644,-3080.74172674,0.00019383,2]
[373360247,1752967842653,-420.0,0.00019409,2]
[373360248,1752967842662,-160.0,0.00019415,2]
[373360249,1752967842671,-160.0,0.00019415,2]
[373360250,1752967842681,-160.0,0.00019415,2]
[373360251,1752967842693,-160.0,0.00019415,2]
[373360252,1752967842703,-230.94145789,0.00019415,2]
[373360253,1752967842712,-160.0,0.00019415,2]
[373360254,1752967842722,-160.0,0.00019415,2]
[373360255,1752967842731,-476.34170116,0.00019415,2]
[373360256,1752967842740,-525.83049785,0.00019415,2]
[373360257,1752967842751,-160.0,0.00019415,2]
[373360258,1752967842761,-215.67360783,0.00019415,2]
[373360259,1752967842772,-12612.80205064,0.00019415,2]
[373360260,1752967842782,-839.454303,0.00019415,2]
[373360261,1752967842791,-214.52603969,0.00019415,2]
[373360262,1752967842801,-500.0,0.0001942,2]
[373360263,1752967842811,-460.0,0.00019429,2]
[373360264,1752967842820,-460.0,0.00019429,2]
[373360265,1752967842829,-460.0,0.00019429,2]
[373360266,1752967842838,-721.04,0.00019429,2]
[373360267,1752967842847,-460.0,0.0001943,2]
[373360268,1752967842856,-460.0,0.0001943,2]
[373360269,1752967842866,-460.0,0.0001943,2]
[373360270,1752967842876,-460.0,0.0001943,2]
[373360271,1752967842885,-460.0,0.0001943,2]
[373360272,1752967842894,-460.0,0.0001943,2]
[373360273,1752967842903,-460.0,0.0001943,2]
[373360274,1752967842913,-963.18,0.0001943,2]
[373360275,1752967842923,-460.0,0.0001943,2]
[373360276,1752967842932,-460.0,0.0001943,2]
[373360277,1752967842941,-460.0,0.0001943,2]